fUST/lending_fUST_20250604
["ID","MTS","AMOUNT","RATE_DAILY","PERIOD"]
[364074242,1748985573198,150.5,0.0002378,120]
[364074243,1748985573653,279.95,0.0002377,120]
[364074245,1748985603163,1161.30904615,0.00022,120]
[364074246,1748985607420,164.34905346,0.00024145,120]
[364074247,1748985609705,175.04106957,0.00024145,120]
[364074248,1748985631711,500.0,0.00023155,120]
[364074249,1748985632482,500.0,0.00023155,120]
[364074250,1748985633411,500.0,0.00023155,120]
[364074251,1748985634035,500.0,0.00023155,120]
[364074252,1748985634898,500.0,0.00023155,120]
[364074253,1748985636948,500.0,0.00023155,120]
[364074254,1748985637743,500.0,0.00023155,120]
[364074255,1748985638518,500.0,0.00023155,120]
[364074256,1748985639314,500.0,0.00023155,120]
[364074257,1748985640092,500.0,0.00023155,120]
[364074258,1748985640866,500.0,0.00023155,120]
[364074259,1748985641641,500.0,0.00023155,120]
[364074263,1748985727191,164.34905346,0.00024145,120]
[364074264,1748985772910,500.0,0.00023155,120]
[364074284,1748985990502,200.0,0.00024149,120]
[364074294,1748986050778,200.0,0.00023489,120]
[364074296,1748986067063,180.59437197,0.000246,120]
[364074308,1748986090051,266.978793,0.00024145,120]
[364074309,1748986092430,543.23824161,0.00024145,120]
[364074310,1748986098503,911.80257868,0.00024145,120]
[364074312,1748986101607,548.24076198,0.00024145,120]
[364074314,1748986106350,841.02563849,0.00024145,120]
[364074316,1748986107493,685.24070819,0.00024145,120]
[364074317,1748986108847,240.82074905,0.00024145,120]
[364074318,1748986109919,241.06308572,0.00024145,120]
[364074319,1748986110508,808.05166536,0.00024145,120]
[364074320,1748986110763,200.0,0.0002355,120]
[364074321,1748986110989,815.65332296,0.00024145,120]
[364074322,1748986112080,1095.70697202,0.00024145,120]
[364074323,1748986112526,353.20604534,0.00024108,120]
[364074324,1748986114482,1011.1454531,0.00024145,120]
[364074325,1748986114755,1003.01259193,0.00024145,120]
[364074326,1748986115290,241.34626524,0.00024145,120]
[364074327,1748986115324,462.29651491,0.00024145,120]
[364074328,1748986116199,253.27490382,0.00024145,120]
[364074329,1748986116486,202.21008085,0.00024145,120]
[364074330,1748986116524,424.6589533,0.00024145,120]
[364074331,1748986116557,519.17397698,0.00024145,120]
[364074332,1748986116592,214.94597415,0.00024145,120]
[364074333,1748986117709,315.55903636,0.00024145,120]
[364074334,1748986117809,202.8474295,0.00024145,120]
[364074335,1748986119002,2062.18233183,0.00015,2]
[364074336,1748986119135,454.7879143,0.00024145,120]
[364074337,1748986119290,217.65071664,0.0001536,120]
[364074338,1748986120147,531.99774173,0.00024145,120]
[364074340,1748986120944,218.40799504,0.00024145,120]
[364074341,1748986121061,23105.18724638,0.0001,2]
[364074345,1748986121546,599.999999,0.00024145,120]
[364074410,1748986136088,500.0,0.00024658,120]
[364074412,1748986151132,500.0,0.00024658,120]
[364074413,1748986156377,430.0,0.00024658,120]
[364074414,1748986165085,500.0,0.00024658,120]
[364074416,1748986186584,272.38854,0.00024658,120]
[364074438,1748986230804,200.0,0.00023997,120]
[364074460,1748986232598,-1000.0,0.00017322,2]
[364074462,1748986232616,-4000.0,0.00017322,2]
[364074464,1748986232626,-659.459984,0.00017737,2]
[364074466,1748986232635,-1200.0,0.00018032,2]
[364074468,1748986232645,-300.0,0.00018033,2]
[364074469,1748986232656,-430.0,0.00018033,2]
[364074470,1748986232667,-24900.0,0.00018034,2]
[364074472,1748986232676,-158.66663864,0.00018284,2]
[364074474,1748986232686,-246.22637772,0.000189,2]
[364074476,1748986232696,-440.0,0.00018999,2]
[364074478,1748986232706,-34050.03747633,0.00019,2]
[364074480,1748986232716,-246.22637751,0.00019107,2]
[364074482,1748986232725,-440.0,0.00019273,2]
[364074484,1748986232735,-246.22637751,0.00019314,2]
[364074486,1748986232746,-423.63107087,0.00019506,2]
[364074488,1748986232755,-246.22637751,0.00019521,2]
[364074490,1748986232765,-440.0,0.00019547,2]
[364074492,1748986232775,-158.6666386,0.00019724,2]
[364074494,1748986232785,-246.22637751,0.00019728,2]
[364074496,1748986232795,-180.842,0.00019798,2]
[364074498,1748986232804,-440.0,0.00019821,2]
[364074500,1748986232814,-246.22637751,0.00019934,2]
[364074502,1748986232829,-1601.61329003,0.0002,7]
[364074507,1748986232864,-1284.40621717,0.0002,7]
[364074548,1748986238520,-693.9804928,0.0002,7]
[364074550,1748986238531,-1583.4345072,0.0002,2]
[364074552,1748986238542,-1176.58715412,0.0002,2]
[364074554,1748986238555,-954.20543836,0.0002,2]
[364074557,1748986238567,-1998.49179696,0.0002,2]
[364074559,1748986238578,-75053.37203589,0.0002,2]
[364074561,1748986238588,-440.0,0.00020095,2]
[364074563,1748986238597,-246.22637751,0.00020141,2]
[364074565,1748986238607,-246.22637751,0.00020348,3]
[364074567,1748986238617,-440.0,0.00020369,2]
[364074569,1748986238626,-246.22637751,0.00020555,3]
[364074571,1748986238636,-954.43,0.000206,2]
[364074573,1748986238646,-440.0,0.00020643,2]
[364074575,1748986238658,-246.22637751,0.00020762,3]
[364074577,1748986238668,-440.0,0.00020917,2]
[364074579,1748986238678,-246.22637751,0.00020969,4]
[364074581,1748986238688,-2284.40621717,0.00021,2]
[364074583,1748986238698,-158.6666386,0.00021165,2]
[364074585,1748986238707,-246.22637751,0.00021176,4]
[364074587,1748986238716,-440.0,0.00021191,2]
[364074589,1748986238726,-246.22637751,0.00021383,5]
[364074591,1748986238737,-726.51,0.00021405,2]
[364074593,1748986238747,-440.0,0.00021465,2]
[364074595,1748986238756,-726.51,0.00021505,2]
[364074597,1748986238765,-246.22637751,0.0002159,5]
[364074599,1748986238774,-726.51,0.00021605,2]
[364074602,1748986238784,-726.51,0.00021705,2]
[364074603,1748986238794,-440.0,0.00021739,2]
[364074606,1748986238803,-246.22637751,0.00021797,6]
[364074607,1748986238812,-726.51,0.00021805,2]
[364074610,1748986238822,-726.51,0.00021905,2]
[364074612,1748986238832,-954.43,0.00022,7]
[364074614,1748986238842,-246.22637751,0.00022003,6]
[364074616,1748986238851,-726.51,0.00022005,7]
[364074618,1748986238861,-440.0,0.00022013,2]
[364074620,1748986238870,-726.51,0.00022105,7]
[364074621,1748986238880,-726.51,0.00022205,3]
[364074623,1748986238889,-246.22637751,0.0002221,6]
[364074626,1748986238900,-440.0,0.00022287,2]
[364074627,1748986238910,-726.51,0.00022305,6]
[364074630,1748986238920,-726.51,0.00022405,3]
[364074632,1748986238929,-246.22637751,0.00022417,7]
[364074634,1748986238939,-726.51,0.00022505,5]
[364074635,1748986238948,-440.0,0.00022561,2]
[364074638,1748986238957,-722.5,0.00022595,10]
[364074640,1748986238968,-158.6666386,0.00022605,2]
[364074642,1748986238977,-726.51,0.00022605,6]
[364074644,1748986238987,-246.22637751,0.00022624,7]
[364074646,1748986238996,-726.51,0.00022705,5]
[364074648,1748986239005,-207.4,0.00022782,2]
[364074650,1748986239015,-962.0,0.00022784,2]
[364074652,1748986239025,-206.227,0.00022784,2]
[364074654,1748986239034,-726.51,0.00022805,6]
[364074656,1748986239044,-246.22637751,0.00022831,8]
[364074658,1748986239052,-440.0,0.00022835,2]
[364074660,1748986239061,-726.51,0.00022905,7]
[364074662,1748986239072,-7360.60695664,0.00022988,2]
[364074664,1748986239082,-5000.0,0.00022988,2]
[364074666,1748986239091,-5000.0,0.00022988,2]
[364074668,1748986239100,-5000.0,0.00022988,2]
[364074670,1748986239110,-19643.13608034,0.0002299,2]
[364074672,1748986239121,-67229.24665096,0.00023,2]
[364074674,1748986239133,-1103.05249401,0.00023,20]
[364074676,1748986239142,-1326.6462031,0.00023,2]
[364074678,1748986239151,-726.51,0.00023005,7]
[364074680,1748986239161,-246.22637751,0.00023038,8]
[364074682,1748986239170,-954.43,0.000231,7]
[364074684,1748986239179,-726.51,0.00023105,4]
[364074686,1748986239188,-440.0,0.00023109,2]
[364074688,1748986239198,-160.0,0.00023178,3]
[364074690,1748986239208,-726.51,0.00023205,6]
[364074692,1748986239218,-246.22637751,0.00023245,8]
[364074694,1748986239228,-159.79694846,0.00023288,2]
[364074696,1748986239237,-1892.0337929,0.000233,15]
[364074698,1748986239247,-726.51,0.00023305,2]
[364074700,1748986239257,-158.5442955,0.00023315,2]
[364074702,1748986239266,-176.5641048,0.00023315,2]
[364074704,1748986239276,-153.0,0.00023315,2]
[364074706,1748986239288,-153.0,0.00023315,2]
[364074708,1748986239298,-572.6068135,0.00023315,2]
[364074710,1748986239308,-158.5442955,0.00023315,2]
[364074712,1748986239317,-572.6068135,0.00023315,2]
[364074714,1748986239327,-176.5641048,0.00023315,2]
[364074716,1748986239338,-153.0,0.00023315,2]
[364074718,1748986239348,-176.5641048,0.00023315,2]
[364074720,1748986239357,-158.5442955,0.00023315,2]
[364074722,1748986239367,-572.6068135,0.00023315,2]
[364074724,1748986239376,-153.0,0.00023315,2]
[364074726,1748986239385,-427.53,0.0002335,8]
[364074728,1748986239395,-275.5,0.0002335,8]
[364074730,1748986239404,-440.0,0.00023383,2]
[364074732,1748986239414,-726.51,0.00023405,2]
[364074734,1748986239424,-932.78646763,0.00023425,30]
[364074736,1748986239434,-246.22637751,0.00023452,9]
[364074738,1748986239444,-561.0,0.000235,2]
[364074740,1748986239454,-561.0,0.000235,2]
[364074742,1748986239464,-561.0,0.000235,2]
[364074744,1748986239474,-561.0,0.000235,2]
[364074746,1748986239484,-561.0,0.000235,2]
[364074748,1748986239493,-561.0,0.000235,2]
[364074750,1748986239503,-561.0,0.000235,2]
[364074752,1748986239512,-561.0,0.000235,2]
[364074754,1748986239521,-561.0,0.000235,2]
[364074756,1748986239531,-561.0,0.000235,2]
[364074758,1748986239540,-3818.63285145,0.000235,2]
[364074760,1748986239549,-47440.32521249,0.000235,2]
[364074762,1748986239559,-726.51,0.00023505,3]
[364074764,1748986239568,-229.42821335,0.00023541,2]
[364074766,1748986239578,-160.0,0.00023541,2]
[364074768,1748986239587,-7270.83165608,0.00023562,2]
[364074770,1748986239596,-726.51,0.00023605,5]
[364074772,1748986239606,-440.0,0.00023657,2]
[364074774,1748986239616,-246.22637751,0.00023659,9]
[364074776,1748986239625,-1766.405099,0.0002367,3]
[364074778,1748986239635,-68797.82673063,0.000237,7]
[364074780,1748986239645,-168.21129388,0.000237,2]
[364074782,1748986239655,-347.60742568,0.000237,2]
[364074783,1748986239667,-551.9605421,0.000237,2]
[364074785,1748986239676,-726.51,0.00023705,3]
[364074787,1748986239686,-551.96054206,0.00023738,2]
[364074790,1748986239696,-507.85671048,0.00023773,2]
[364074791,1748986239706,-551.96054206,0.00023777,2]
[364074794,1748986239716,-70596.92049574,0.0002378,7]
[364074796,1748986239726,-1000.0,0.00023799,5]
[364074798,1748986239735,-638.82456347,0.00023799,2]
[364074800,1748986239745,-500.0,0.00023799,2]
[364074802,1748986239755,-500.0,0.00023799,2]
[364074804,1748986239764,-500.0,0.00023799,2]
[364074806,1748986239773,-500.0,0.00023799,2]
[364074808,1748986239783,-500.0,0.00023799,2]
[364074810,1748986239793,-500.0,0.00023799,2]
[364074812,1748986239803,-500.0,0.00023799,2]
[364074814,1748986239812,-500.0,0.00023799,2]
[364074816,1748986239822,-500.0,0.00023799,2]
[364074818,1748986239831,-500.0,0.00023799,2]
[364074820,1748986239841,-419.58557177,0.00023799,2]
[364074822,1748986239850,-450.0,0.00023799,2]
[364074824,1748986239860,-500.0,0.00023799,2]
[364074826,1748986239870,-500.0,0.00023799,2]
[364074828,1748986239880,-500.0,0.00023799,2]
[364074830,1748986239889,-500.0,0.00023799,2]
[364074832,1748986239898,-409.02410236,0.00023799,2]
[364074834,1748986239909,-500.0,0.00023799,2]
[364074836,1748986239918,-500.0,0.00023799,2]
[364074838,1748986239928,-174.47896412,0.00023799,2]
[364074840,1748986239937,-392.60563126,0.00023799,2]
[364074842,1748986239947,-500.0,0.00023799,2]
[364074844,1748986239956,-500.0,0.00023799,2]
[364074846,1748986239965,-500.0,0.00023799,2]
[364074848,1748986239975,-500.0,0.00023799,2]
[364074850,1748986239984,-500.0,0.00023799,2]
[364074851,1748986239994,-500.0,0.00023799,2]
[364074853,1748986240004,-206.18620081,0.00023799,2]
[364074856,1748986240015,-500.0,0.00023799,2]
[364074858,1748986240025,-500.0,0.00023799,2]
[364074860,1748986240035,-500.0,0.00023799,2]
[364074862,1748986240045,-500.0,0.00023799,2]
[364074864,1748986240054,-500.0,0.00023799,2]
[364074866,1748986240064,-500.0,0.00023799,2]
[364074868,1748986240073,-211.87660772,0.00023799,2]
[364074870,1748986240083,-500.0,0.00023799,2]
[364074888,1748986240219,-610.68761917,0.00023799,2]
[364074890,1748986240230,-649.40665939,0.00023799,2]
[364074892,1748986240239,-53609.18301351,0.000238,2]
[364074894,1748986240249,-13643.45890762,0.000238,3]
[364074897,1748986240262,-430.0,0.000238,3]
[364075047,1748986243548,-790.0325986,0.00022578,2]
[364075048,1748986243560,-666.2854014,0.00022578,2]
[364075049,1748986243569,-158.5442955,0.00023315,2]
[364075050,1748986243579,-572.6068135,0.00023315,2]
[364075051,1748986243588,-176.5641048,0.00023315,2]
[364075052,1748986243597,-5000.0,0.00023561,2]
[364075053,1748986243606,-347.37832569,0.000238,3]
[364075054,1748986243618,-381.44168871,0.000238,3]
[364075055,1748986243629,-10498.0,0.000238,3]
[364075056,1748986243640,-1217.88098543,0.000238,3]
[364075130,1748986246849,-602.09,0.0002379,10]
[364075132,1748986246859,-11267.05198444,0.000238,3]
[364075310,1748986250529,264.297804,0.00013699,2]
[364075331,1748987276490,308.028155,0.00013699,2]
[364075352,1748987431971,-5000.0,0.00017031,2]
[364075353,1748987431982,-164.90024098,0.00017203,2]
[364075354,1748987431992,-204.2136669,0.00017203,2]
[364075355,1748987432001,-710.176922,0.00017204,2]
[364075356,1748987432010,-300.0,0.00018029,2]
[364075357,1748987432020,-300.0,0.00018029,2]
[364075358,1748987432029,-300.0,0.00018029,2]
[364075359,1748987432041,-300.0,0.00018029,2]
[364075360,1748987432051,-1200.0,0.00018029,2]
[364075361,1748987432061,-430.0,0.00018033,2]
[364075362,1748987432070,-430.0,0.00018033,2]
[364075363,1748987432081,-430.0,0.0001826,2]
[364075364,1748987432091,-440.0,0.0001826,2]
[364075365,1748987432103,-430.0,0.0001826,2]
[364075366,1748987432119,-440.0,0.0001826,2]
[364075368,1748987432135,-430.0,0.0001826,2]
[364075370,1748987432144,-430.0,0.0001826,2]
[364075372,1748987432154,-7679.21727676,0.00018261,2]
[364075373,1748987432166,-1750.72605576,0.00018261,2]
[364075374,1748987432178,-2599.85870363,0.00018261,2]
[364075375,1748987432189,-1137.5,0.00018261,2]
[364075376,1748987432201,-6443.34842255,0.00018261,2]
[364075409,1748987437884,-336.26733391,0.00018078,2]
[364075411,1748987437896,-1567.3008456,0.00018078,2]
[364075413,1748987437907,-3096.43182049,0.00018078,2]
[364075415,1748987437917,-5289.3495413,0.00018261,2]
[364075417,1748987437927,-440.0,0.00018534,2]
[364075420,1748987437937,-440.0,0.00018534,2]
[364075422,1748987437947,-440.0,0.00018808,2]
[364075423,1748987437956,-440.0,0.00018808,2]
[364075426,1748987437967,-430.0,0.00018854,2]
[364075428,1748987437977,-440.0,0.00018854,2]
[364075430,1748987437987,-430.0,0.00018854,2]
[364075432,1748987437998,-440.0,0.00019082,2]
[364075435,1748987438008,-440.0,0.00019082,2]
[364075438,1748987438026,-440.0,0.00019128,2]
[364075440,1748987438041,-440.0,0.00019356,2]
[364075442,1748987438051,-440.0,0.00019356,2]
[364075444,1748987438062,-440.0,0.00019402,2]
[364075446,1748987438072,-507.85671048,0.0001946,2]
[364075448,1748987438082,-440.0,0.0001963,2]
[364075450,1748987438092,-440.0,0.0001963,2]
[364075452,1748987438103,-420.0,0.00019671,2]
[364075454,1748987438115,-440.0,0.00019676,2]
[364075455,1748987438125,-180.84247167,0.00019821,2]
[364075456,1748987438135,-320.74378478,0.000199,2]
[364075457,1748987438149,-680.16704455,0.000199,2]
[364075458,1748987438158,-440.0,0.00019904,2]
[364075459,1748987438169,-440.0,0.00019904,2]
[364075460,1748987438179,-440.0,0.0001995,2]
[364075461,1748987438189,-10.55966133,0.0001998,2]
[364075462,1748987438203,-413.07140954,0.0001998,2]
[364075463,1748987438213,-229.42821335,0.0001998,2]
[364075464,1748987438224,-160.0,0.0001998,2]
[364075465,1748987438234,-1000.91082922,0.00020072,2]
[364075466,1748987438245,-440.0,0.00020178,2]
[364075467,1748987438255,-440.0,0.00020178,2]
[364075468,1748987438266,-308.028155,0.00020187,2]
[364075469,1748987438275,-440.0,0.00020224,2]
[364075470,1748987438286,-1000.91082922,0.00020245,2]
[364075471,1748987438296,-1000.91082922,0.00020417,3]
[364075472,1748987438307,-331.98,0.00020452,2]
[364075473,1748987438317,-440.0,0.00020452,2]
[364075474,1748987438327,-440.0,0.00020498,2]
[364075475,1748987438337,-500.0,0.00020547,2]
[364075476,1748987438348,-1000.91082922,0.0002059,3]
[364075477,1748987438358,-440.0,0.00020726,2]
[364075478,1748987438368,-1000.91082922,0.00020762,3]
[364075479,1748987438378,-440.0,0.00020772,2]
[364075480,1748987438387,-440.0,0.00021,2]
[364075481,1748987438398,-440.0,0.00021037,2]
[364075482,1748987438408,-440.0,0.00021037,2]
[364075483,1748987438418,-440.0,0.00021037,2]
[364075484,1748987438428,-440.0,0.00021037,2]
[364075485,1748987438438,-440.0,0.00021037,2]
[364075486,1748987438448,-553.36,0.00021037,2]
[364075487,1748987438459,-446.59,0.00021037,2]
[364075488,1748987438470,-440.0,0.00021046,2]
[364075489,1748987438480,-500.0,0.00021095,3]
[364075490,1748987438491,-5000.0,0.00021133,2]
[364075491,1748987438501,-483.73,0.00021274,2]
[364075492,1748987438511,-440.0,0.00021311,2]
[364075493,1748987438521,-440.0,0.00021311,2]
[364075494,1748987438531,-440.0,0.00021311,2]
[364075495,1748987438541,-446.59,0.00021311,2]
[364075496,1748987438550,-162.9,0.0002132,2]
[364075497,1748987438561,-403.0,0.00021463,2]
[364075498,1748987438571,-1998.17,0.00021574,10]
[364075499,1748987438581,-1665.14,0.00021574,10]
[364075500,1748987438591,-29030.07242,0.00021584,2]
[364075501,1748987438603,-440.0,0.00021585,2]
[364075502,1748987438612,-440.0,0.00021585,2]
[364075503,1748987438622,-440.0,0.00021585,2]
[364075504,1748987438632,-446.59,0.00021585,2]
[364075505,1748987438642,-500.0,0.00021643,4]
[364075506,1748987438655,-1387.62,0.00021849,10]
[364075507,1748987438664,-440.0,0.00021859,2]
[364075508,1748987438675,-440.0,0.00021859,2]
[364075509,1748987438684,-440.0,0.00021859,2]
[364075510,1748987438694,-446.59,0.00021859,2]
[364075511,1748987438703,-8112.92177804,0.00021917,2]
[364075512,1748987438715,-440.0,0.00022133,2]
[364075513,1748987438724,-440.0,0.00022133,2]
[364075514,1748987438734,-440.0,0.00022133,2]
[364075515,1748987438744,-446.59,0.00022133,2]
[364075516,1748987438754,-500.0,0.00022191,5]
[364075517,1748987438764,-1749.45,0.00022209,10]
[364075518,1748987438773,-364.5107659,0.00022219,2]
[364075519,1748987438783,-364.5107659,0.00022219,2]
[364075520,1748987438793,-364.5107659,0.00022219,2]
[364075521,1748987438803,-694.8005966,0.00022219,2]
[364075522,1748987438813,-729.0215318,0.00022219,2]
[364075523,1748987438823,-729.0215318,0.00022219,2]
[364075524,1748987438833,-440.0,0.00022407,2]
[364075525,1748987438843,-440.0,0.00022407,2]
[364075526,1748987438853,-440.0,0.00022407,2]
[364075527,1748987438863,-446.59,0.00022407,2]
[364075528,1748987438872,-158.5442955,0.00022493,2]
[364075529,1748987438882,-176.5641048,0.00022493,2]
[364075530,1748987438892,-176.5641048,0.00022493,2]
[364075531,1748987438902,-158.5442955,0.00022493,2]
[364075532,1748987438911,-572.6068135,0.00022493,2]
[364075533,1748987438921,-176.5641048,0.00022493,2]
[364075534,1748987438930,-317.088591,0.00022493,2]
[364075535,1748987438940,-176.5641048,0.00022493,2]
[364075536,1748987438949,-440.0,0.00022681,2]
[364075537,1748987438959,-440.0,0.00022681,2]
[364075538,1748987438970,-440.0,0.00022681,2]
[364075539,1748987438979,-446.59,0.00022681,2]
[364075540,1748987438989,-500.0,0.00022739,6]
[364075541,1748987438999,-364.5107659,0.00022741,2]
[364075542,1748987439010,-207.4,0.00022782,2]
[364075543,1748987439021,-500.0,0.00022782,2]
[364075544,1748987439032,-500.0,0.00022782,2]
[364075545,1748987439045,-500.0,0.00022782,2]
[364075546,1748987439055,-446.14358159,0.00022782,2]
[364075547,1748987439064,-500.0,0.00022782,2]
[364075548,1748987439074,-500.0,0.00022782,2]
[364075549,1748987439085,-500.0,0.00022782,2]
[364075550,1748987439097,-500.0,0.00022782,2]
[364075551,1748987439107,-500.0,0.00022782,2]
[364075552,1748987439118,-500.0,0.00022782,2]
[364075553,1748987439129,-500.0,0.00022782,2]
[364075554,1748987439138,-500.0,0.00022782,2]
[364075555,1748987439148,-500.0,0.00022782,2]
[364075556,1748987439158,-500.0,0.00022782,2]
[364075557,1748987439169,-1284.03,0.000228,7]
[364075558,1748987439178,-153.0,0.00022878,2]
[364075559,1748987439188,-153.0,0.00022878,2]
[364075560,1748987439198,-154.2001919,0.00022878,2]
[364075561,1748987439209,-176.5641048,0.00022878,2]
[364075562,1748987439219,-459.2205728,0.00022878,2]
[364075563,1748987439228,-510.45975574,0.000229,5]
[364075564,1748987439238,-1020.16068379,0.000229,2]
[364075565,1748987439248,-200.0,0.00022947,7]
[364075566,1748987439258,-204.42612242,0.00022947,7]
[364075567,1748987439268,-440.0,0.00022955,2]
[364075568,1748987439277,-440.0,0.00022955,2]
[364075569,1748987439287,-495.02,0.00022955,2]
[364075570,1748987439297,-446.59,0.00022955,2]
[364075571,1748987439306,-962.0,0.00022964,2]
[364075572,1748987439316,-709.0,0.00022964,2]
[364075573,1748987439326,-2225.0,0.00022964,2]
[364075574,1748987439337,-151.608,0.00022964,2]
[364075576,1748987439347,-196.698,0.00022964,2]
[364075577,1748987439357,-427.53,0.00022973,8]
[364075579,1748987439367,-159.79694846,0.00022986,2]
[364075581,1748987439376,-7360.60695664,0.00022988,2]
[364075582,1748987439386,-5000.0,0.00022988,2]
[364075583,1748987439396,-5000.0,0.00022988,2]
[364075584,1748987439405,-5000.0,0.00022988,2]
[364075585,1748987439415,-162595.15,0.00023,7]
[364075586,1748987439425,-1020.16068379,0.000231,2]
[364075587,1748987439434,-728.7564356,0.00023178,2]
[364075588,1748987439444,-314.91183566,0.00023229,2]
[364075589,1748987439455,-440.0,0.00023229,2]
[364075590,1748987439467,-446.59,0.00023229,2]
[364075591,1748987439477,-500.0,0.00023287,7]
[364075594,1748987439487,-159.79694846,0.00023288,2]
[364075597,1748987439496,-159.79694846,0.00023288,2]
[364075598,1748987439506,-1020.16068379,0.000233,2]
[364075599,1748987439516,-153.0,0.00023315,2]
[364075600,1748987439527,-153.0,0.00023315,2]
[364075601,1748987439537,-1145.213627,0.00023315,2]
[364075602,1748987439547,-572.6068135,0.00023315,2]
[364075603,1748987439557,-1145.213627,0.00023315,2]
[364075604,1748987439567,-153.0,0.00023315,2]
[364075605,1748987439577,-153.0,0.00023315,2]
[364075606,1748987439589,-153.0,0.00023315,2]
[364075607,1748987439599,-153.0,0.00023315,2]
[364075608,1748987439609,-153.0,0.00023315,2]
[364075609,1748987439618,-153.0,0.00023315,2]
[364075610,1748987439628,-153.0,0.00023315,2]
[364075611,1748987439638,-192.6249252,0.00023315,2]
[364075612,1748987439648,-572.6068135,0.00023315,2]
[364075613,1748987439658,-297.0203863,0.00023315,2]
[364075614,1748987439668,-158.5442955,0.00023315,2]
[364075615,1748987439677,-158.5442955,0.00023315,2]
[364075616,1748987439687,-572.6068135,0.00023315,2]
[364075617,1748987439697,-158.5442955,0.00023315,2]
[364075618,1748987439707,-153.0,0.00023315,2]
[364075619,1748987439717,-153.0,0.00023315,2]
[364075620,1748987439726,-572.6068135,0.00023315,2]
[364075621,1748987439737,-176.5641048,0.00023315,2]
[364075622,1748987439747,-176.5641048,0.00023315,2]
[364075623,1748987439756,-572.6068135,0.00023315,2]
[364075624,1748987439766,-176.5641048,0.00023315,2]
[364075625,1748987439775,-317.088591,0.00023315,2]
[364075627,1748987439936,-153.0,0.00023315,2]
[364075628,1748987439956,-153.0,0.00023315,2]
[364075629,1748987439976,-572.6068135,0.00023315,2]
[364075630,1748987439987,-1075.7480811,0.00023315,2]
[364075631,1748987439998,-153.0,0.00023315,2]
[364075633,1748987440009,-153.0,0.00023315,2]
[364075635,1748987440019,-572.6068135,0.00023315,2]
[364075637,1748987440029,-153.0,0.00023315,2]
[364075639,1748987440041,-153.0,0.00023315,2]
[364075641,1748987440051,-572.6068135,0.00023315,2]
[364075643,1748987440062,-1766.405099,0.00023324,3]
[364075645,1748987440072,-275.5,0.00023359,8]
[364075647,1748987440091,-1020.16068379,0.000235,2]
[364075649,1748987440102,-440.0,0.00023503,2]
[364075651,1748987440112,-446.59,0.00023503,2]
[364075654,1748987440122,-7270.83165608,0.00023562,2]
[364075656,1748987440132,-151.0,0.000236,6]
[364075658,1748987440143,-892.92296546,0.00023614,2]
[364075660,1748987440153,-151.0,0.000237,6]
[364075662,1748987440163,-151.0,0.000237,10]
[364075664,1748987440173,-168.21129388,0.000237,2]
[364075666,1748987440182,-1284.03,0.000237,7]
[364075668,1748987440193,-151.0,0.000237,6]
[364075670,1748987440203,-1020.16068379,0.000237,2]
[364075672,1748987440213,-551.9605421,0.000237,2]
[364075674,1748987440223,-551.96054206,0.00023739,2]
[364075676,1748987440233,-500.0,0.00023773,2]
[364075678,1748987440243,-208.8,0.00023777,2]
[364075680,1748987440254,-446.59,0.00023777,2]